fUSD/lending_fUSD_20240403
["ID","MTS","AMOUNT","RATE_DAILY","PERIOD"]
[321388443,1712111450520,-3649.75,0.00054794,120]
[321388444,1712111450530,-1541.68,0.00054794,120]
[321388445,1712111450539,-1172.63,0.00054794,120]
[321388446,1712111450549,-2613.14,0.00054794,120]
[321388447,1712111450558,-500.0,0.00054794,120]
[321388448,1712111450568,-3574.6,0.00054794,120]
[321388449,1712111450578,-1993.66,0.00054794,120]
[321388450,1712111450587,-1500.0,0.00054795,120]
[321388451,1712111450597,-18722.38766018,0.00054795,30]
[321388452,1712111450608,-571.0,0.00054795,120]
[321388453,1712111450617,-174.50146826,0.00054795,30]
[321388454,1712111450626,-18722.38766018,0.00054795,30]
[321388455,1712111450635,-174.50146826,0.00054797,30]
[321388456,1712111450644,-5984.25767316,0.00054797,30]
[321388457,1712111450654,-187.45183882,0.00054798,30]
[321388458,1712111450663,-5984.25767316,0.00054798,30]
[321388459,1712111450673,-5984.25767316,0.00054798,30]
[321388460,1712111450682,-2883.48058311,0.00054798,30]
[321388461,1712111450692,-160.52665587,0.00054799,30]
[321388462,1712111450701,-2000.0,0.000548,30]
[321388463,1712111450710,-192.54724242,0.000548,60]
[321388464,1712111450720,-160.52665587,0.000548,30]
[321388465,1712111450729,-176.06773933,0.00054801,30]
[321388466,1712111450738,-176.06773933,0.00054801,30]
[321388467,1712111450747,-187.45183882,0.00054802,30]
[321388468,1712111450757,-157.78996916,0.00054803,60]
[321388469,1712111450766,-7116.48170237,0.00054804,30]
[321388470,1712111451129,-6588.9,0.00054804,30]
[321388471,1712111451516,-0.00600967,0.00054804,30]
[321388472,1712111451847,-1226.0,0.00035286,2]
[321388473,1712111451857,-40231.04361003,0.00054804,30]
[321388474,1712111451867,-11898.55,0.00054804,120]
[321388475,1712111451876,-1447.82372455,0.00054804,30]
[321388476,1712111451885,-160.52665587,0.00054805,30]
[321388477,1712111451895,-18722.38766018,0.00054805,30]
[321388478,1712111451904,-53936.43132207,0.00054805,30]
[321388479,1712111451914,-157.78996916,0.00054805,60]
[321388480,1712111451923,-151.9799583,0.00054807,30]
[321388481,1712111451932,-174.50146826,0.00054808,30]
[321388482,1712111451942,-1304.32637434,0.00054809,120]
[321388483,1712111451952,-151.52615673,0.0005481,30]
[321388484,1712111451961,-176.06773933,0.00054811,30]
[321388485,1712111451971,-174.50146826,0.00054812,30]
[321388486,1712111451981,-196.82861859,0.00054814,30]
[321388487,1712111451990,-150.0,0.00054814,14]
[321388488,1712111451999,-24330.94186003,0.00054815,30]
[321388489,1712111452145,-57849.16317906,0.00054815,30]
[321388490,1712111452154,-150.0,0.00054815,14]
[321388491,1712111452164,-150.0,0.00054815,14]
[321388492,1712111452173,-271.51108099,0.00054816,32]
[321388493,1712111452182,-187.45183882,0.00054816,30]
[321388494,1712111452192,-176.06773933,0.00054817,30]
[321388495,1712111452201,-196.82861859,0.00054817,30]
[321388496,1712111452211,-5984.25767316,0.00054817,30]
[321388497,1712111452221,-5984.25767315,0.00054818,30]
[321388498,1712111452230,-187.45183882,0.00054819,30]
[321388499,1712111452297,-160.52665587,0.00054822,30]
[321388500,1712111452306,-82180.10503909,0.00054822,30]
[321388501,1712111452316,-5984.25767315,0.00054822,30]
[321388502,1712111452325,-5984.25767315,0.00054822,30]
[321388503,1712111452334,-176.06773933,0.00054822,30]
[321388504,1712111452344,-254.25257527,0.00054824,30]
[321388505,1712111452353,-160.52665587,0.00054824,30]
[321388506,1712111452364,-11898.55,0.00054824,120]
[321388507,1712111452373,-82180.10503909,0.00054824,30]
[321388508,1712111452382,-18722.38766018,0.00054825,30]
[321388509,1712111452392,-151.9799583,0.00054825,30]
[321388510,1712111452402,-18722.38766018,0.0005483,30]
[321388511,1712111452410,-187.45183882,0.0005483,30]
[321388512,1712111452420,-150.0,0.0005483,14]
[321388513,1712111452429,-53936.43132207,0.00054831,30]
[321388514,1712111452438,-1447.82372455,0.00054831,30]
[321388515,1712111452447,-82180.10503909,0.00054832,30]
[321388516,1712111452456,-160.52665587,0.00054832,30]
[321388517,1712111452465,-196.82861859,0.00054833,30]
[321388518,1712111452475,-196.82861859,0.00054835,30]
[321388519,1712111452484,-151.52615673,0.00054835,30]
[321388520,1712111452494,-11898.55,0.00054836,120]
[321388521,1712111452505,-174.50146826,0.00054837,30]
[321388522,1712111452514,-53936.43132207,0.00054837,30]
[321388523,1712111452525,-5984.25767315,0.00054837,30]
[321388524,1712111452534,-254.25257527,0.00054839,30]
[321388525,1712111452543,-187.45183882,0.0005484,30]
[321388526,1712111452553,-1447.82372455,0.0005484,30]
[321388527,1712111452562,-151.9799583,0.0005484,30]
[321388528,1712111452572,-1447.82372455,0.00054841,30]
[321388529,1712111452581,-82180.10503909,0.00054842,30]
[321388530,1712111452591,-150.0,0.00054843,14]
[321388531,1712111452600,-150.0,0.00054843,14]
[321388532,1712111452611,-151.52615673,0.00054844,30]
[321388533,1712111452620,-196.82861859,0.00054844,30]
[321388534,1712111452629,-53936.43132207,0.00054845,30]
[321388535,1712111452639,-196.82861859,0.00054845,30]
[321388536,1712111452648,-151.52615673,0.00054847,30]
[321388537,1712111452658,-196.82861859,0.00054848,30]
[321388538,1712111452669,-176.06773933,0.00054848,30]
[321388539,1712111452679,-5984.25767315,0.00054848,30]
[321388540,1712111452688,-5984.25767315,0.00054848,30]
[321388541,1712111452698,-151.52615673,0.00054848,30]
[321388542,1712111452707,-1447.82372455,0.00054848,30]
[321388543,1712111452716,-254.25257527,0.00054849,30]
[321388544,1712111452726,-11898.55,0.00054849,120]
[321388545,1712111452735,-160392.0,0.00054849,15]
[321388546,1712111452745,-151.52615673,0.0005485,30]
[321388547,1712111452755,-150.0,0.0005485,14]
[321388548,1712111452764,-174.50146826,0.00054851,30]
[321388549,1712111452773,-53936.43132207,0.00054852,30]
[321388550,1712111452782,-196.82861859,0.00054853,30]
[321388551,1712111452791,-176.06773933,0.00054853,30]
[321388552,1712111452800,-5984.25767316,0.00054854,30]
[321388553,1712111452809,-18722.38766018,0.00054855,30]
[321388554,1712111452818,-174.50146826,0.00054856,30]
[321388555,1712111452827,-2883.48058311,0.00054859,30]
[321388556,1712111452837,-150.0,0.00054859,14]
[321388557,1712111452846,-176.06773933,0.00054859,30]
[321388558,1712111452855,-174.50146826,0.00054861,30]
[321388559,1712111452865,-2883.48058311,0.00054862,30]
[321388560,1712111452874,-2883.48058311,0.00054865,30]
[321388561,1712111452882,-151.52615673,0.00054866,30]
[321388562,1712111452891,-151.9799583,0.00054866,30]
[321388563,1712111452900,-151.9799583,0.00054867,30]
[321388564,1712111452909,-1447.82372455,0.00054867,30]
[321388565,1712111452918,-150.0,0.00054868,14]
[321388566,1712111452927,-1447.82372455,0.00054868,30]
[321388567,1712111452936,-151.9799583,0.00054869,30]
[321388568,1712111452946,-169.34,0.0005487,15]
[321388569,1712111452955,-172.09,0.0005487,15]
[321388570,1712111452965,-160.52665587,0.0005487,30]
[321388571,1712111452975,-2883.48058311,0.00054871,30]
[321388572,1712111452985,-5984.25767316,0.00054874,30]
[321388573,1712111452997,-11898.55,0.00054874,120]
[321388574,1712111453008,-254.25257527,0.00054875,30]
[321388575,1712111453019,-82180.10503909,0.00054875,30]
[321388576,1712111453030,-150.0,0.00054875,14]
[321388577,1712111453040,-151.9799583,0.00054876,30]
[321388578,1712111453050,-187.45183882,0.00054876,30]
[321388579,1712111453061,-2404.79,0.00054876,117]
[321388580,1712111453072,-2883.48058311,0.00054877,30]
[321388581,1712111453082,-150.0,0.00054877,14]
[321388582,1712111453095,-150.0,0.00054877,14]
[321388583,1712111453104,-18722.38766018,0.00054878,30]
[321388584,1712111453118,-176.06773933,0.00054878,30]
[321388585,1712111453127,-5984.25767316,0.00054878,30]
[321388586,1712111453137,-150.5,0.0005488,15]
[321388587,1712111453149,-150.5,0.0005488,15]
[321388588,1712111453158,-151.9799583,0.0005488,30]
[321388589,1712111453167,-2883.48058311,0.00054882,30]
[321388590,1712111453177,-151.52615673,0.00054883,30]
[321388591,1712111453187,-18722.38766018,0.00054883,30]
[321388592,1712111453197,-150.0,0.00054883,14]
[321388593,1712111453206,-196.82861859,0.00054883,30]
[321388594,1712111453215,-5984.25767316,0.00054883,30]
[321388595,1712111453225,-53936.43132207,0.00054884,30]
[321388596,1712111453234,-254.25257527,0.00054884,30]
[321388597,1712111453243,-187.45183882,0.00054884,30]
[321388598,1712111453252,-151.52615673,0.00054885,30]
[321388599,1712111453261,-82180.10503909,0.00054886,30]
[321388600,1712111453270,-11898.55,0.00054886,120]
[321388601,1712111453279,-53936.43132207,0.00054887,30]
[321388602,1712111453288,-254.25257527,0.00054888,30]
[321388603,1712111453297,-2883.48058311,0.00054889,30]
[321388604,1712111453306,-1447.82372455,0.00054889,30]
[321388605,1712111453315,-150.5,0.0005489,15]
[321388606,1712111453325,-150.5,0.0005489,15]
[321388607,1712111453334,-5984.25767316,0.0005489,30]
[321388608,1712111453344,-160.52665587,0.0005489,30]
[321388609,1712111453353,-254.25257527,0.00054891,30]
[321388610,1712111453367,-174.50146826,0.00054892,30]
[321388611,1712111453376,-150.0,0.00054892,14]
[321388612,1712111453385,-153.53105329,0.00054892,60]
[321388613,1712111453395,-53936.43132207,0.00054893,30]
[321388614,1712111453404,-82180.10503909,0.00054893,30]
[321388615,1712111453412,-1447.82372455,0.00054894,30]
[321388616,1712111453421,-5984.25767315,0.00054894,30]
[321388617,1712111453431,-5984.25767315,0.00054894,30]
[321388618,1712111453441,-151.9799583,0.00054895,30]
[321388619,1712111453450,-254.25257527,0.00054897,30]
[321388620,1712111453459,-160.52665587,0.00054898,30]
[321388621,1712111453469,-187.45183882,0.00054899,30]
[321388622,1712111453478,-11898.55,0.000549,120]
[321388623,1712111453487,-82180.10503909,0.00054901,30]
[321388624,1712111453497,-2883.48058311,0.00054901,30]
[321388625,1712111453506,-18722.38766018,0.00054901,30]
[321388626,1712111453516,-150.0,0.00054908,60]
[321388627,1712111453524,-150.0,0.0005491,14]
[321388628,1712111453533,-150.0,0.0005493,14]
[321388629,1712111453543,-500.0,0.00054931,120]
[321388630,1712111453552,-150.0,0.00054941,14]
[321388631,1712111453562,-200.0,0.00054949,120]
[321388632,1712111453571,-970.35316896,0.0005495,14]
[321388633,1712111453580,-150.0,0.00054956,14]
[321388634,1712111453590,-150.0,0.0005497,14]
[321388635,1712111453599,-150.0,0.0005498,14]
[321388636,1712111453611,-150.0,0.00054982,14]
[321388637,1712111453620,-2309.51715,0.00054982,30]
[321388638,1712111453630,-150.0,0.00054988,14]
[321388639,1712111453639,-150.0,0.00054989,14]
[321388640,1712111453648,-150.0,0.00054994,14]
[321388641,1712111453657,-150.0,0.00054997,14]
[321388642,1712111453666,-1000.0,0.00055,120]
[321388643,1712111453677,-1000.0,0.00055,120]
[321388644,1712111453686,-1470.00237881,0.00055,120]
[321388645,1712111453696,-496.59051175,0.00055,18]
[321388646,1712111453705,-150.0,0.00055,120]
[321388647,1712111453714,-269.07,0.00055,120]
[321388648,1712111453723,-403.0,0.00055,34]
[321388649,1712111453732,-6192.28110403,0.00055,120]
[321388650,1712111453742,-150.0,0.00055,96]
[321388651,1712111453752,-299.81217614,0.00055,30]
[321388652,1712111453761,-300.0,0.00055,60]
[321388653,1712111453770,-160.82183394,0.00055,30]
[321388654,1712111453780,-238.5415166,0.00055,30]
[321388655,1712111453790,-2302.21546741,0.00055,60]
[321388656,1712111453800,-2200.0,0.00055,120]
[321388657,1712111453810,-883.0,0.00055,104]
[321388658,1712111453819,-150.0,0.00055,12]
[321388659,1712111453828,-1014.82,0.00055,2]
[321388660,1712111453838,-225.63480246,0.00055,90]
[321388661,1712111453847,-310.74,0.00055,2]
[321388662,1712111453858,-1000.0,0.00055,120]
[321388663,1712111453868,-150.0,0.00055002,14]
[321388664,1712111453877,-150.0,0.00055004,14]
[321388665,1712111453887,-150.0,0.00055007,14]
[321388666,1712111453896,-154.12212371,0.00055014,120]
[321388667,1712111453905,-150.0,0.00055021,14]
[321388668,1712111453914,-150.0,0.00055029,14]
[321388669,1712111453923,-154.90905975,0.00055031,120]
[321388670,1712111453933,-150.0,0.00055033,14]
[321388671,1712111453942,-150.0,0.00055039,14]
[321388672,1712111453951,-150.0,0.00055039,14]
[321388673,1712111453960,-150.0,0.00055044,14]
[321388674,1712111453970,-150.0,0.00055055,14]
[321388675,1712111453979,-150.0,0.00055062,14]
[321388676,1712111453988,-28985.3670118,0.00055062,2]
[321388677,1712111453997,-4247.781996,0.00055062,2]
[321388678,1712111454006,-1816.2533057,0.00055062,2]
[321388679,1712111454015,-9475.0240812,0.00055062,2]
[321388680,1712111454025,-17015.57155101,0.00055062,2]
[321388681,1712111455722,-560.58443518,0.0002999,2]
[321388682,1712111455732,-150.0,0.00054556,7]
[321388683,1712111455742,-150.0,0.00054603,7]
[321388684,1712111455751,-150.0,0.00054606,7]
[321388685,1712111455760,-156.4650777,0.00054711,7]
[321388686,1712111455770,-150.0,0.00054724,7]
[321388687,1712111455780,-150.0,0.00054739,7]
[321388688,1712111455793,-150.0,0.00054739,7]
[321388689,1712111455803,-150.0,0.00054752,7]
[321388690,1712111455813,-150.0,0.00054766,7]
[321388691,1712111455824,-150.0,0.00054767,7]
[321388692,1712111455834,-150.0,0.0005477,7]
[321388693,1712111455843,-150.0,0.00054777,7]
[321388694,1712111455853,-150.0,0.00054783,7]
[321388695,1712111455864,-150.0,0.00054787,7]
[321388696,1712111455873,-150.0,0.0005479,7]
[321388697,1712111455882,-500.0,0.00054794,120]
[321388698,1712111455893,-500.0,0.00054794,120]
[321388699,1712111455903,-150.0,0.00054805,14]
[321388700,1712111455912,-150.0,0.00054806,14]
[321388701,1712111455921,-150.0,0.00054808,14]
[321388702,1712111455931,-150.0,0.0005481,14]
[321388703,1712111455940,-150.0,0.00054815,14]
[321388704,1712111455950,-150.0,0.00054825,14]
[321388705,1712111455960,-150.0,0.00054837,14]
[321388706,1712111455970,-150.0,0.00054838,14]
[321388707,1712111455980,-150.0,0.00054864,14]
[321388708,1712111455989,-150.0,0.00054875,14]
[321388709,1712111455999,-150.0,0.00054879,14]
[321388710,1712111456008,-150.0,0.00054881,14]
[321388711,1712111456019,-150.0,0.00054894,14]
[321388712,1712111456029,-150.0,0.00054903,14]
[321388713,1712111456041,-150.0,0.00054906,14]
[321388714,1712111456051,-150.0,0.00054933,14]
[321388715,1712111456063,-150.0,0.00054954,14]
[321388716,1712111456074,-150.0,0.00054956,14]
[321388717,1712111456083,-150.0,0.00054972,14]
[321388718,1712111456093,-150.0,0.00055,14]
[321388719,1712111456106,-150.0,0.00055001,14]
[321388720,1712111456118,-150.0,0.00055026,14]
[321388721,1712111456128,-150.0,0.00055027,14]
[321388722,1712111456139,-150.0,0.00055034,14]
[321388723,1712111456151,-150.0,0.00055035,14]
[321388724,1712111456163,-150.0,0.00055041,14]
[321388725,1712111456175,-150.0,0.00055042,14]
[321388726,1712111456186,-150.0,0.00055044,14]
[321388727,1712111456198,-150.0,0.00055048,14]
[321388728,1712111456209,-150.0,0.00055061,14]
[321388729,1712111456219,-31279.82463869,0.00055062,2]
[321388730,1712111456233,-623.8491278,0.00055062,2]
[321388731,1712111456246,-885.57734502,0.00055062,2]
[321388732,1712111456258,-342.89474385,0.00055062,2]
[321388733,1712111456921,-150.0,0.00054531,7]
[321388734,1712111456930,-150.0,0.00054655,7]
[321388735,1712111456940,-150.0,0.00054693,7]
[321388736,1712111456950,-45.99127795,0.00054695,7]
[321388737,1712111457250,-104.00872205,0.00054695,7]
[321388738,1712111457261,-146.64682931,0.00054719,7]
[321388739,1712111457276,-3.35317069,0.00054719,7]
[321388740,1712111457286,-150.0,0.00054758,7]
[321388741,1712111457295,-150.0,0.00054789,7]
[321388742,1712111457304,-27.95138562,0.00054791,7]
[321388743,1712111457454,-150.0,0.00035286,2]
[321388744,1712111457463,-122.04861438,0.00054791,7]
[321388745,1712111457472,-500.0,0.00054794,120]
[321388746,1712111457481,-500.0,0.00054794,120]
[321388747,1712111457491,-500.0,0.00054794,120]
[321388748,1712111457500,-340.96669214,0.00054794,120]
[321388749,1712111471044,550.0,0.00025,3]
[321388750,1712111472241,600.0,0.00027,3]
[321388751,1712111496466,200.0,0.00025933,2]
[321388752,1712111545794,23900.0,0.00025933,2]
[321388753,1712111553928,228.01510559,0.0002619,2]
[321388755,1712111630609,47920.8204188,0.00042503,30]
[321388758,1712111834341,288.28,0.00025933,2]
[321388759,1712112132772,156.52582733,0.00027,120]
[321388761,1712112426320,-396.30746776,0.00028975,2]
[321388762,1712112437108,-228.01712256,0.00028975,2]
[321388766,1712112631807,-500.0,0.00028968,2]
[321388767,1712112631817,-400.0,0.00028969,2]
[321388796,1712112637511,-966.37557177,0.00028969,2]
[321388798,1712112637525,-5307.27459175,0.00028971,2]
[321388805,1712112637592,-5682.2700435,0.00028971,2]
[321388806,1712112637602,-650.0,0.00029,3]
[321388807,1712112637612,-560.58443518,0.00029,2]
[321388808,1712112637622,-417.9718,0.00029897,2]
[321388809,1712112637633,-2639.48076778,0.0002999,2]
[321388810,1712112637644,-433.07382979,0.00029995,2]
[321388811,1712112637653,-215.34479663,0.00029995,2]
[321388812,1712112637664,-150.0,0.00029996,2]
[321388813,1712112637675,-4775.91341774,0.00029997,2]
[321388814,1712112637686,-1202.25022689,0.00029997,2]
[321388815,1712112637696,-405.14841286,0.0003,4]
[321388816,1712112637707,-200.11666355,0.0003,4]
[321388817,1712112637717,-3205.84389542,0.0003,2]
[321388818,1712112637727,-155.0,0.0003,2]
[321388819,1712112637738,-19289.64853053,0.0003,4]
[321388820,1712112637748,-499.99,0.0003,2]
[321388821,1712112637758,-2965.41137053,0.000303,2]
[321388822,1712112637767,-721.0,0.000304,2]
[321388823,1712112637778,-700.0,0.00031,3]
[321388824,1712112637789,-9984.44,0.00032232,2]
[321388825,1712112637799,-2173.2888,0.000327,2]
[321388826,1712112637810,-727.2416,0.000327,3]
[321388827,1712112637819,-2750.4677485,0.000328,4]
[321388828,1712112637830,-750.0,0.00033,3]
[321388829,1712112637840,-36671.7389,0.00034249,2]
[321388830,1712112637850,-150.0,0.00034548,10]
[321388831,1712112637860,-9053.58976532,0.000348,4]
[321388832,1712112637869,-150.0,0.00034995,2]
[321388833,1712112637879,-150.354,0.00034995,2]
[321388834,1712112637889,-151.0,0.00034995,2]
[321388835,1712112637898,-150.0,0.00034995,2]
[321388836,1712112637909,-150.213,0.00034995,2]
[321388837,1712112637919,-200.0,0.00034995,2]
[321388839,1712112637928,-265.042,0.00034995,2]
[321388841,1712112637938,-150.0,0.00034995,2]
[321388843,1712112637947,-152.882,0.00034995,2]
[321388845,1712112637957,-800.0,0.00035,3]
[321388847,1712112637966,-1281.21723531,0.00035,4]
[321388849,1712112637975,-227.53,0.00035957,2]
[321388851,1712112637985,-165.97,0.00036265,2]
[321388853,1712112637994,-23900.0,0.00036271,2]
[321388855,1712112638005,-250.0,0.00036329,112]
[321388857,1712112638014,-200.0,0.00036371,2]
[321388859,1712112638023,-850.0,0.00037,3]
[321388861,1712112638033,-153.72,0.00037808,2]
[321388863,1712112638042,-150.0,0.00037995,2]
[321388865,1712112638052,-150.0,0.00037995,2]
[321388867,1712112638061,-150.0,0.00037995,2]
[321388869,1712112638071,-150.0,0.00037995,2]
[321388871,1712112638080,-336.62,0.00038027,15]
[321388872,1712112638090,-227.53,0.00038221,2]
[321388873,1712112638100,-167.07,0.00038263,2]
[321388874,1712112638110,-167.07,0.00038662,2]
[321388875,1712112638120,-4064.11230153,0.000389,15]
[321388876,1712112638130,-900.0,0.00039,3]
[321388877,1712112638139,-167.07,0.00039061,2]
[321388879,1712112638149,-167.07,0.0003946,2]
[321388880,1712112638160,-180.0,0.00039822,2]
[321388882,1712112638170,-167.07,0.00039858,2]
[321388884,1712112638180,-22098.16965284,0.0004,4]
[321388886,1712112638189,-1652.89178,0.0004,4]
[321388888,1712112638198,-167.07,0.00040257,2]
[321388890,1712112638209,-227.53,0.00040485,2]
[321388892,1712112638218,-336.62,0.00040767,15]
[321388894,1712112638229,-200.0,0.00040917,2]
[321388897,1712112638239,-150.0,0.00040995,2]
[321388899,1712112638250,-150.0,0.00040995,2]
[321388901,1712112638259,-950.0,0.00041,3]
[321388903,1712112638270,-180.45,0.00041096,2]
[321388904,1712112638279,-865.36083501,0.00041653,2]
[321388906,1712112638289,-397.15956738,0.00041653,2]
[321388907,1712112638298,-4990.35,0.00041753,60]
[321388908,1712112638308,-4815.178,0.00042463,7]
[321388909,1712112638318,-1828.54434568,0.00042503,10]
[321388910,1712112638329,-3352.54061562,0.00042503,4]
[321388911,1712112638338,-32810.85255092,0.00042563,2]
[321388912,1712112638347,-1748.413585,0.00042563,2]
[321388913,1712112638356,-227.53,0.00042749,2]
[321388914,1712112638366,-178.98,0.00042795,2]
[321388915,1712112638375,-159.4,0.00042877,2]
[321388916,1712112638385,-800.0,0.00042939,2]
[321388917,1712112638395,-1000.0,0.00043,3]
[321388918,1712112638405,-397.15956729,0.00043436,2]
[321388919,1712112638416,-865.36083499,0.00043437,2]
[321388920,1712112638425,-336.62,0.00043507,15]
[321388921,1712112638434,-193.5,0.00043836,2]
[321388922,1712112638443,-170.71562917,0.00045,7]
[321388923,1712112638453,-10415.06202819,0.00045,5]
[321388924,1712112638462,-1050.0,0.00045,3]
[321388925,1712112638472,-328.38424403,0.00045,4]
[321388926,1712112638481,-227.53,0.00045013,2]
[321388927,1712112638491,-397.15956729,0.00045219,2]
[321388928,1712112638501,-865.36083499,0.00045221,2]
[321388929,1712112638516,-200.0,0.00045463,2]
[321388930,1712112638529,-336.62,0.00046247,15]
[321388931,1712112638539,-1100.0,0.00047,3]
[321388932,1712112638549,-397.15956729,0.00047002,2]
[321388933,1712112638560,-865.36083499,0.00047005,2]
[321388934,1712112638570,-227.53,0.00047276,2]
[321388935,1712112638579,-165.97,0.00047497,120]
[321388936,1712112638590,-800.0,0.00048306,2]
[321388937,1712112638599,-3373.03554017,0.000484,2]
[321388938,1712112638610,-397.15956729,0.00048785,2]
[321388939,1712112638620,-865.36083499,0.00048789,2]
[321388940,1712112638631,-336.62,0.00048986,15]
[321388941,1712112638641,-1150.0,0.00049,3]
[321388942,1712112638650,-1211.0,0.00049,4]
[321388943,1712112638661,-227.53,0.0004954,2]
[321388944,1712112638670,-3980.15381944,0.00049559,4]
[321388945,1712112638680,-995.26,0.000498,2]
[321388946,1712112638690,-273.969525,0.000498,2]
[321388947,1712112638700,-5000.0,0.0005,30]
[321388948,1712112638710,-27093.29378832,0.0005,4]
[321388949,1712112638723,-3606.0,0.0005,9]
[321388950,1712112638733,-200.0,0.0005001,120]
[321388951,1712112638743,-397.15956729,0.00050568,2]
[321388952,1712112638753,-865.36083499,0.00050572,2]
[321388953,1712112638763,-192.34627844,0.000509,120]
[321388954,1712112638773,-1200.0,0.00051,3]
[321388955,1712112638783,-559.98667228,0.00051,4]
[321388956,1712112638793,-157.78996916,0.00051093,60]
[321388957,1712112638803,-151.29625458,0.00051097,60]
[321388958,1712112638813,-155.64422401,0.00051102,60]
[321388959,1712112638823,-995.26,0.00051105,2]
[321388960,1712112638833,-3526.87693569,0.000512,4]
[321388961,1712112638843,-1000.0,0.000512,7]
[321388962,1712112638853,-166.66666666,0.00051239,60]
[321388963,1712112638862,-154.90905975,0.00051288,60]
[321388964,1712112638871,-152.53521069,0.00051358,60]
[321388965,1712112638882,-158.56831728,0.00051383,60]
[321388966,1712112638898,-154.27788654,0.0005143,60]
[321388967,1712112638908,-155.64619037,0.00051443,60]
[321388968,1712112638919,-158.17172809,0.00051502,60]
[321388969,1712112638929,-158.56831728,0.00051538,60]
[321388970,1712112638938,-153.53105329,0.00051591,60]
[321388971,1712112638948,-157.78996916,0.00051663,60]
[321388972,1712112638958,-222.10516263,0.00051708,60]
[321388973,1712112638967,-336.62,0.00051726,120]
[321388974,1712112638978,-154.27788654,0.00051727,60]
[321388975,1712112638987,-163.09123869,0.00051749,60]
[321388976,1712112638997,-158.56831728,0.00051771,60]
[321388977,1712112639007,-227.53,0.00051804,2]
[321388978,1712112639017,-154.90905975,0.00051824,60]
[321388979,1712112639027,-158.56831728,0.0005186,60]
[321388980,1712112639037,-222.10516263,0.00051912,60]
[321388981,1712112639046,-154.35503135,0.00051962,60]
[321388982,1712112639056,-158.17172809,0.00051967,60]
[321388983,1712112639066,-222.10516263,0.00051981,60]
[321388984,1712112639076,-1012.07157059,0.00052,120]
[321388985,1712112639086,-152.53521069,0.00052011,60]
[321388986,1712112639096,-169.67446293,0.00052114,60]
[321388987,1712112639105,-158.17172809,0.00052144,60]
[321388988,1712112639115,-222.10516263,0.00052179,60]
[321388989,1712112639124,-154.90905975,0.00052192,60]
[321388990,1712112639133,-164.57501875,0.00052237,60]
[321388991,1712112639143,-155.64619037,0.00052257,60]
[321388993,1712112639153,-154.35503135,0.00052297,60]
[321388995,1712112639163,-222.10516263,0.00052323,60]
[321388997,1712112639174,-397.15956729,0.00052351,2]
[321388999,1712112639184,-182.95642099,0.00052356,60]
[321389001,1712112639194,-865.36083499,0.00052356,2]
[321389003,1712112639205,-153.64559786,0.00052374,60]
[321389006,1712112639215,-995.26,0.0005241,2]
[321389008,1712112639225,-158.56831728,0.00052524,60]
[321389010,1712112639235,-155.80724412,0.00052557,60]
[321389012,1712112639244,-152.53521069,0.00052581,60]
[321389014,1712112639253,-150.62416573,0.00052654,60]
[321389016,1712112639263,-155.64619037,0.00052661,60]
[321389017,1712112639272,-1000.0,0.000527,7]
[321389018,1712112639281,-155.80724412,0.00052847,60]
[321389019,1712112639290,-154.12212373,0.00052854,60]
[321389020,1712112639300,-200.0,0.0005289,30]
[321389021,1712112639310,-800.0,0.0005289,30]
[321389022,1712112639320,-500.0,0.0005289,30]
[321389023,1712112639329,-163.09123869,0.00052926,60]
[321389024,1712112639338,-222.10516263,0.00052991,60]
[321389025,1712112639347,-153.50447707,0.00052999,60]
[321389026,1712112639357,-1250.0,0.00053,3]
[321389027,1712112639366,-662.0,0.00053,100]
[321389028,1712112639376,-222.10516263,0.00053023,60]